[Event "WYCC U16 Girls 2019"]
[Site "Mumbai"]
[Date "2019.10.02"]
[Round "1.2"]
[White "Poorna Sri M.K"]
[Black "Beydullayeva, Govhar"]
[Result "0-1"]
[ECO "B90"]
[WhiteElo "1787"]
[BlackElo "2289"]
[Annotator "NA"]
[PlyCount "110"]
[EventDate "2019.10.02"]
[EventType "swiss"]
[EventCountry "IND"]
[SourceTitle "playchess.com"]
[Source "ChessBase"]
[SourceQuality "1"]
[TimeControl "40/5400+30:1800+30"]

1. e4 {[%emt 0:00:00]} c5 {[%emt 0:00:00]} 2. Nf3 {[%emt 0:00:00]} d6 {[%emt 0:00:00]} 3. d4 {[%emt 0:00:00]} cxd4 {[%emt 0:00:00]} 4. Nxd4 {[%emt 0:00:01]} Nf6 {[%emt 0:00:00]} 5. Nc3 {[%emt 0:00:08]} a6 {[%emt 0:00:03]} 6. h3 {[%emt 0:00:08]} e5 {[%emt 0:00:25]} 7. Nde2 {[%emt 0:00:06]} h5 {[%emt 0:00:11]} 8. Bg5 {[%emt 0:00:46]} Be6 {[%emt 0:00:09]} 9. Bxf6 {[%emt 0:00:33]} Qxf6 {[%emt 0:00:07]} 10. Nd5 {[%emt 0:00:18]} Qd8 {[%emt 0:00:10]} 11. Qd2 {[%emt 0:02:29]} g6 {[%emt 0:04:31]} 12. g3 {[%emt 0:04:28]} Nd7 {[%emt 0:02:35]} 13. Bg2 {[%emt 0:05:43]} Nc5 {[%emt 0:05:05]} 14. O-O-O {[%emt 0:04:46]} Bh6 {[%emt 0:04:11]} 15. f4 {[%emt 0:02:30]} h4 {[%emt 0:11:44]} 16. g4 {[%emt 0:06:45]} Bxd5 {[%emt 0:23:02]} 17. exd5 {[%emt 0:06:18]} exf4 {[%emt 0:02:01]} 18. Nxf4 {[%emt 0:02:04]} O-O {[%emt 0:01:25]} 19. Kb1 {[%emt 0:04:33]} Qg5 {[%emt 0:04:54]} 20. Rhf1 {[%emt 0:02:24]} Rae8 {[%emt 0:02:15]} 21. Qb4 {[%emt 0:11:46]} Re3 {[%emt 0:04:53]} 22. Rf2 {[%emt 0:30:59]} Rfe8 {[%emt 0:03:54]} 23. Rdf1 {[%emt 0:04:31]} Qe5 {[%emt 0:03:02]} 24. Nd3 {[%emt 0:07:06]} Nxd3 {[%emt 0:09:19]} 25. cxd3 {[%emt 0:00:02]} Re1+ {[%emt 0:01:36]} 26. Rxe1 {[%emt 0:00:06]} Qxe1+ {[%emt 0:00:01]} 27. Qxe1 {[%emt 0:00:02]} Rxe1+ {[%emt 0:00:04]} 28. Kc2 {[%emt 0:00:05]} Be3 {[%emt 0:00:29]} 29. Rf3 {[%emt 0:00:12]} Re2+ {[%emt 0:04:46]} 30. Kb3 {[%emt 0:00:07]} Bd4 {[%emt 0:06:19]} 31. Bf1 {[%emt 0:00:15]} Rxb2+ {[%emt 0:00:04]} 32. Kc4 {[%emt 0:01:48]} Bg7 {[%emt 0:00:12]} 33. d4 {[%emt 0:00:55]} b5+ {[%emt 0:00:27]} 34. Kc3 {[%emt 0:00:51]} Rxa2 {[%emt 0:00:05]} 35. Rf4 {[%emt 0:03:04]} Ra3+ {[%emt 0:01:02]} 36. Kb4 {[%emt 0:00:20]} Re3 {[%emt 0:00:34]} 37. g5 {[%emt 0:01:35]} Rg3 {[%emt 0:02:40]} 38. Rxh4 {[%emt 0:00:40]} Rxg5 {[%emt 0:00:20]} 39. Ka5 {[%emt 0:00:21]} Rg3 {[%emt 0:05:34]} 40. Kxa6 {[%emt 0:00:40]} b4 {[%emt 0:00:38]} 41. Re4 {[%emt 0:30:29]} b3 {[%emt 0:02:34]} 42. Re8+ {[%emt 0:00:00]} Kh7 {[%emt 0:00:06]} 43. Rb8 {[%emt 0:00:00]} Bxd4 {[%emt 0:00:13]} 44. Kb5 {[%emt 0:00:00]} b2 {[%emt 0:01:52]} 45. Kc6 {[%emt 0:00:00]} Be5 {[%emt 0:00:52]} 46. Rb7 {[%emt 0:00:00]} Kh6 {[%emt 0:02:43]} 47. Kd7 {[%emt 0:00:00]} f5 {[%emt 0:00:42]} 48. Ke6 {[%emt 0:00:00]} Kg5 {[%emt 0:00:19]} 49. Rb4 {[%emt 0:00:00]} f4 {[%emt 0:00:29]} 50. Be2 {[%emt 0:00:00]} Rxh3 {[%emt 0:00:12]} 51. Kf7 {[%emt 0:00:00]} Re3 {[%emt 0:00:17]} 52. Bd1 {[%emt 0:00:00]} f3 {[%emt 0:00:27]} 53. Kg8 {[%emt 0:00:00]} f2 {[%emt 0:00:18]} 54. Rg4+ {[%emt 0:00:00]} Kf5 {[%emt 0:00:19]} 55. Kh7 {[%emt 0:01:23]} b1=Q {[%emt 0:00:39]} 0-1

[Event "WYCC U16 Girls 2019"]
[Site "Mumbai"]
[Date "2019.10.02"]
[Round "1.3"]
[White "Mrudul Dehankar"]
[Black "Otrubova, Kristyna"]
[Result "1-0"]
[ECO "B77"]
[WhiteElo "2227"]
[BlackElo "1766"]
[Annotator "NA"]
[PlyCount "37"]
[EventDate "2019.10.02"]
[EventType "swiss"]
[EventCountry "IND"]
[SourceTitle "playchess.com"]
[Source "ChessBase"]
[SourceQuality "1"]
[TimeControl "40/5400+30:1800+30"]

1. e4 {[%emt 0:00:00]} c5 {[%emt 0:00:00]} 2. Nf3 {[%emt 0:00:00]} d6 {[%emt 0:00:00]} 3. d4 {[%emt 0:00:00]} cxd4 {[%emt 0:00:00]} 4. Nxd4 {[%emt 0:00:01]} Nf6 {[%emt 0:00:03]} 5. Nc3 {[%emt 0:00:06]} g6 {[%emt 0:00:07]} 6. Be3 {[%emt 0:00:11]} Bg7 {[%emt 0:00:09]} 7. f3 {[%emt 0:00:15]} O-O {[%emt 0:00:12]} 8. Bc4 {[%emt 0:00:26]} Nc6 {[%emt 0:00:26]} 9. Qd2 {[%emt 0:00:22]} Bd7 {[%emt 0:00:15]} 10. h4 {[%emt 0:00:43]} Rc8 {[%emt 0:04:41]} 11. Bb3 {[%emt 0:01:00]} Nxd4 {[%emt 0:29:42]} 12. Bxd4 {[%emt 0:00:27]} Qc7 {[%emt 0:05:19]} 13. h5 {[%emt 0:13:08]} e5 {[%emt 0:08:55]} 14. Be3 {[%emt 0:02:53]} Rfd8 {[%emt 0:18:04]} 15. hxg6 {[%emt 0:06:44]} hxg6 {[%emt 0:06:30]} 16. Bh6 {[%emt 0:03:00]} Bh8 {[%emt 0:05:14]} 17. Bg5 {[%emt 0:06:48]} Bg7 {[%emt 0:04:56]} 18. Bxf6 {[%emt 0:00:54]} Bxf6 {[%emt 0:00:03]} 19. Nd5 {[%emt 0:00:18]} 1-0

[Event "WYCC U16 Girls 2019"]
[Site "Mumbai"]
[Date "2019.10.02"]
[Round "1.4"]
[White "Meenatchi Rajam V"]
[Black "Nurgali, Nazerke"]
[Result "0-1"]
[ECO "D59"]
[WhiteElo "1764"]
[BlackElo "2194"]
[Annotator "NA"]
[PlyCount "86"]
[EventDate "2019.10.02"]
[EventType "swiss"]
[EventCountry "IND"]
[SourceTitle "playchess.com"]
[Source "ChessBase"]
[SourceQuality "1"]
[TimeControl "40/5400+30:1800+30"]

1. Nf3 d5 2. d4 Nf6 3. c4 e6 4. Nc3 Be7 5. Bg5 h6 6. Bh4 O-O 7. e3 b6 8. cxd5 Nxd5 9. Bxe7 Qxe7 10. Nxd5 exd5 11. Rc1 Be6 12. Qa4 c5 13. Qa3 Rc8 14. Be2 Kf8 15. O-O c4 16. Qxe7+ Kxe7 17. Nd2 Nc6 18. Bf3 b5 19. b3 Rab8 20. Rfd1 Nb4 21. a3 Nd3 22. Rc3 a5 23. bxc4 dxc4 24. d5 Bd7 25. e4 Nb2 26. Rdc1 b4 27. axb4 axb4 28. Re3 c3 29. Nb3 Nc4 30. Rd3 Kd6 31. Be2 Ra8 32. Rd4 Bb5 33. f4 f6 34. Bd3 Ra3 35. e5+ fxe5 36. fxe5+ Nxe5 37. Bxb5 Rxb3 38. Ba4 Rb2 39. Bc2 Rc4 40. Rxc4 Nxc4 41. Bd3 Kxd5 42. Bxc4+ Kxc4 43. Kf1 c2 0-1

[Event "WYCC U16 Girls 2019"]
[Site "Mumbai"]
[Date "2019.10.02"]
[Round "1.5"]
[White "Bulatova, Kamaliya"]
[Black "Lei, Amy"]
[Result "1-0"]
[ECO "E54"]
[WhiteElo "2181"]
[BlackElo "1754"]
[Annotator "NA"]
[PlyCount "77"]
[EventDate "2019.10.02"]
[EventType "swiss"]
[EventCountry "IND"]
[SourceTitle "playchess.com"]
[Source "ChessBase"]
[SourceQuality "1"]
[TimeControl "40/5400+30:1800+30"]

1. d4 {[%emt 0:00:00]} Nf6 {[%emt 0:00:00]} 2. c4 {[%emt 0:00:00]} e6 {[%emt 0:00:00]} 3. Nc3 {[%emt 0:00:00]} Bb4 {[%emt 0:00:00]} 4. e3 {[%emt 0:00:00]} O-O {[%emt 0:00:33]} 5. Bd3 {[%emt 0:00:02]} d5 {[%emt 0:00:53]} 6. Nf3 {[%emt 0:00:22]} dxc4 {[%emt 0:02:57]} 7. Bxc4 {[%emt 0:00:46]} c5 {[%emt 0:00:36]} 8. O-O {[%emt 0:01:27]} Nc6 {[%emt 0:02:53]} 9. a3 {[%emt 0:04:34]} Ba5 {[%emt 0:09:01]} 10. Qd3 {[%emt 0:20:49]} cxd4 {[%emt 0:10:46]} 11. exd4 {[%emt 0:01:01]} h6 {[%emt 0:18:59]} 12. Rd1 {[%emt 0:07:13]} a6 {[%emt 0:11:19]} 13. Ne4 {[%emt 0:08:21]} Nd5 {[%emt 0:17:48]} 14. Bb3 {[%emt 0:08:13]} f5 {[%emt 0:05:24]} 15. Nc3 {[%emt 0:01:51]} Bxc3 {[%emt 0:02:31]} 16. bxc3 {[%emt 0:00:08]} b5 {[%emt 0:04:50]} 17. a4 {[%emt 0:07:37]} b4 {[%emt 0:03:57]} 18. c4 {[%emt 0:04:08]} Nc3 {[%emt 0:00:29]} 19. Re1 {[%emt 0:03:52]} Qf6 {[%emt 0:00:33]} 20. Bb2 {[%emt 0:05:12]} Ne4 {[%emt 0:01:03]} 21. Rab1 {[%emt 0:03:51]} Na5 {[%emt 0:02:27]} 22. Bc2 {[%emt 0:01:21]} Rb8 {[%emt 0:00:43]} 23. d5 {[%emt 0:00:42]} Qe7 {[%emt 0:00:36]} 24. Rxe4 {[%emt 0:04:04]} b3 {[%emt 0:01:09]} 25. Ree1 {[%emt 0:01:25]} bxc2 {[%emt 0:00:12]} 26. Qxc2 {[%emt 0:00:03]} Bd7 {[%emt 0:01:35]} 27. d6 {[%emt 0:01:38]} Qe8 {[%emt 0:00:44]} 28. Qc3 {[%emt 0:00:26]} Rxb2 {[%emt 0:00:25]} 29. Rxb2 {[%emt 0:00:14]} Nc6 {[%emt 0:00:30]} 30. c5 {[%emt 0:02:02]} a5 {[%emt 0:00:14]} 31. Ne5 {[%emt 0:04:07]} Nb4 {[%emt 0:00:27]} 32. Rxb4 {[%emt 0:02:44]} axb4 {[%emt 0:00:10]} 33. Qxb4 {[%emt 0:00:03]} Bxa4 {[%emt 0:00:23]} 34. Ra1 {[%emt 0:02:16]} Bc6 {[%emt 0:02:02]} 35. Qb6 {[%emt 0:00:41]} Bd5 {[%emt 0:00:49]} 36. c6 {[%emt 0:01:48]} Qh5 {[%emt 0:00:14]} 37. Qd4 {[%emt 0:02:02]} Qg5 {[%emt 0:00:24]} 38. f3 {[%emt 0:00:37]} f4 {[%emt 0:00:50]} 39. c7 {[%emt 0:00:24]} 1-0

[Event "WYCC U16 Girls 2019"]
[Site "Mumbai"]
[Date "2019.10.02"]
[Round "1.6"]
[White "Eesha Ajay Sarda"]
[Black "Loskutova, Viktoriya"]
[Result "0-1"]
[ECO "B51"]
[WhiteElo "1744"]
[BlackElo "2149"]
[Annotator "NA"]
[PlyCount "112"]
[EventDate "2019.10.02"]
[EventType "swiss"]
[EventCountry "IND"]
[SourceTitle "playchess.com"]
[Source "ChessBase"]
[SourceQuality "1"]
[TimeControl "40/5400+30:1800+30"]

1. e4 {[%emt 0:00:00]} c5 {[%emt 0:00:00]} 2. Nf3 {[%emt 0:00:00]} d6 {[%emt 0:00:00]} 3. Bb5+ {[%emt 0:00:01]} Nd7 {[%emt 0:00:00]} 4. O-O {[%emt 0:00:28]} a6 {[%emt 0:00:13]} 5. Bd3 {[%emt 0:00:11]} Ngf6 {[%emt 0:00:16]} 6. Re1 {[%emt 0:00:15]} e6 {[%emt 0:00:20]} 7. c3 {[%emt 0:00:38]} b5 {[%emt 0:00:16]} 8. Bc2 {[%emt 0:02:24]} Bb7 {[%emt 0:00:39]} 9. d4 {[%emt 0:02:05]} Be7 {[%emt 0:00:47]} 10. h3 {[%emt 0:02:58]} O-O {[%emt 0:03:13]} 11. Bf4 {[%emt 0:01:39]} Qc7 {[%emt 0:10:15]} 12. Nbd2 {[%emt 0:11:43]} e5 {[%emt 0:05:53]} 13. dxe5 {[%emt 0:05:56]} dxe5 {[%emt 0:00:09]} 14. Bh2 {[%emt 0:01:59]} Rfe8 {[%emt 0:04:08]} 15. Qe2 {[%emt 0:04:18]} c4 {[%emt 0:06:30]} 16. a4 {[%emt 0:02:33]} Bd6 {[%emt 0:15:17]} 17. Rec1 {[%emt 0:12:10]} Nc5 {[%emt 0:05:44]} 18. Nh4 {[%emt 0:04:38]} g6 {[%emt 0:02:15]} 19. Kh1 {[%emt 0:06:16]} Bc6 {[%emt 0:05:45]} 20. f3 {[%emt 0:06:25]} Nh5 {[%emt 0:04:41]} 21. g3 {[%emt 0:08:18]} Bd7 {[%emt 0:02:56]} 22. g4 {[%emt 0:02:15]} Nf4 {[%emt 0:04:32]} 23. Qf1 {[%emt 0:01:53]} Ncd3 {[%emt 0:02:52]} 24. Rcb1 {[%emt 0:02:14]} Be7 {[%emt 0:07:21]} 25. Bg3 {[%emt 0:02:20]} Bg5 {[%emt 0:06:27]} 26. Kh2 {[%emt 0:06:15]} h5 {[%emt 0:04:00]} 27. Ng2 {[%emt 0:03:22]} Nxg2 {[%emt 0:06:12]} 28. Qxg2 {[%emt 0:00:43]} h4 {[%emt 0:00:17]} 29. Be1 {[%emt 0:00:43]} Nf4 {[%emt 0:01:23]} 30. Qf1 {[%emt 0:01:02]} Rad8 {[%emt 0:00:57]} 31. Rd1 {[%emt 0:02:38]} Bc6 {[%emt 0:00:26]} 32. axb5 {[%emt 0:01:33]} Bxb5 {[%emt 0:00:28]} 33. Qf2 {[%emt 0:01:10]} Nd3 {[%emt 0:01:17]} 34. Bxd3 {[%emt 0:01:18]} Rxd3 {[%emt 0:00:11]} 35. Nf1 {[%emt 0:00:37]} Red8 {[%emt 0:00:36]} 36. Qe2 {[%emt 0:01:03]} Qe7 {[%emt 0:00:50]} 37. Kh1 {[%emt 0:02:39]} Qf6 {[%emt 0:00:15]} 38. Kg2 {[%emt 0:01:02]} Qf4 {[%emt 0:00:29]} 39. Rxd3 {[%emt 0:00:59]} Rxd3 {[%emt 0:01:03]} 40. Rd1 {[%emt 0:00:21]} Qf6 {[%emt 0:00:19]} 41. b4 {[%emt 0:30:57]} Qd6 {[%emt 0:05:05]} 42. Ra1 {[%emt 0:00:00]} Kg7 {[%emt 0:12:17]} 43. Ra2 {[%emt 0:00:00]} Qc6 {[%emt 0:02:24]} 44. Ra3 {[%emt 0:00:00]} Bc1 {[%emt 0:00:51]} 45. Ra1 {[%emt 0:00:00]} Bg5 {[%emt 0:01:01]} 46. Ra3 {[%emt 0:00:00]} Ba4 {[%emt 0:08:05]} 47. Nd2 {[%emt 0:00:03]} Qd7 {[%emt 0:01:04]} 48. Ra2 {[%emt 0:00:37]} Re3 {[%emt 0:02:05]} 49. Qf1 {[%emt 0:00:48]} Bd1 {[%emt 0:01:03]} 50. Bf2 {[%emt 0:02:40]} Be2 {[%emt 0:00:47]} 51. Qb1 {[%emt 0:00:45]} Rd3 {[%emt 0:00:41]} 52. Nxc4 {[%emt 0:00:31]} Bxf3+ {[%emt 0:00:05]} 53. Kh2 {[%emt 0:00:13]} Bf4+ {[%emt 0:00:05]} 54. Kg1 {[%emt 0:00:05]} Rd1+ {[%emt 0:00:04]} 55. Qxd1 {[%emt 0:00:08]} Qxd1+ {[%emt 0:00:05]} 56. Be1 {[%emt 0:00:03]} Qxe1# 0-1

[Event "WYCC U16 Girls 2019"]
[Site "Mumbai"]
[Date "2019.10.02"]
[Round "1.7"]
[White "Mahdian, Anousha"]
[Black "Maciulaityte, Barbora"]
[Result "1-0"]
[ECO "D90"]
[WhiteElo "2103"]
[BlackElo "1682"]
[Annotator "NA"]
[PlyCount "87"]
[EventDate "2019.10.02"]
[EventType "swiss"]
[EventCountry "IND"]
[SourceTitle "playchess.com"]
[Source "ChessBase"]
[SourceQuality "1"]
[TimeControl "40/5400+30:1800+30"]

1. d4 {[%emt 0:00:00]} Nf6 {[%emt 0:00:00]} 2. c4 {[%emt 0:00:00]} g6 {[%emt 0:00:00]} 3. Nc3 {[%emt 0:00:00]} d5 {[%emt 0:00:00]} 4. Nf3 {[%emt 0:00:00]} Bg7 {[%emt 0:00:02]} 5. h4 {[%emt 0:00:00]} c6 {[%emt 0:05:30]} 6. Bg5 {[%emt 0:00:00]} Be6 {[%emt 0:11:07]} 7. cxd5 {[%emt 0:15:53]} Nxd5 {[%emt 0:10:36]} 8. e4 {[%emt 0:01:35]} Nxc3 {[%emt 0:01:25]} 9. bxc3 {[%emt 0:00:05]} Qa5 {[%emt 0:05:26]} 10. Bd2 {[%emt 0:09:45]} Bg4 {[%emt 0:15:14]} 11. Qb3 {[%emt 0:01:44]} Qb6 {[%emt 0:00:42]} 12. Bc4 {[%emt 0:07:51]} Qxb3 {[%emt 0:03:33]} 13. axb3 {[%emt 0:02:01]} Bxf3 {[%emt 0:04:28]} 14. gxf3 {[%emt 0:00:08]} h5 {[%emt 0:00:13]} 15. f4 {[%emt 0:03:27]} Nd7 {[%emt 0:06:31]} 16. b4 {[%emt 0:04:43]} a6 {[%emt 0:03:18]} 17. Ra5 {[%emt 0:06:48]} Nb6 {[%emt 0:01:39]} 18. Be2 {[%emt 0:09:08]} O-O-O {[%emt 0:08:41]} 19. f5 {[%emt 0:03:39]} Rhg8 {[%emt 0:01:52]} 20. fxg6 {[%emt 0:03:30]} fxg6 {[%emt 0:00:08]} 21. Rg1 {[%emt 0:00:56]} Bf6 {[%emt 0:01:17]} 22. Bg5 {[%emt 0:00:09]} Rdf8 {[%emt 0:02:05]} 23. Rg2 {[%emt 0:03:39]} Kd7 {[%emt 0:04:49]} 24. Kd2 {[%emt 0:04:19]} Kc8 {[%emt 0:03:54]} 25. Kd3 {[%emt 0:04:52]} Rd8 {[%emt 0:01:04]} 26. f4 {[%emt 0:03:41]} Rdf8 {[%emt 0:02:15]} 27. Bxf6 {[%emt 0:01:59]} exf6 {[%emt 0:00:58]} 28. c4 {[%emt 0:01:06]} Nd7 {[%emt 0:01:02]} 29. Ra1 {[%emt 0:00:54]} g5 {[%emt 0:05:33]} 30. fxg5 {[%emt 0:02:38]} fxg5 {[%emt 0:00:02]} 31. hxg5 {[%emt 0:01:26]} h4 {[%emt 0:00:50]} 32. Rh1 {[%emt 0:01:08]} Rh8 {[%emt 0:01:08]} 33. Rgh2 {[%emt 0:03:35]} Rfg8 {[%emt 0:00:19]} 34. Rxh4 {[%emt 0:00:02]} Rxh4 {[%emt 0:00:02]} 35. Rxh4 {[%emt 0:00:06]} Rxg5 {[%emt 0:00:01]} 36. Bg4 {[%emt 0:00:01]} Rg7 {[%emt 0:00:47]} 37. Bf5 {[%emt 0:02:34]} Kc7 {[%emt 0:00:42]} 38. Bxd7 {[%emt 0:01:57]} Kxd7 {[%emt 0:00:02]} 39. d5 {[%emt 0:00:06]} cxd5 {[%emt 0:01:41]} 40. cxd5 {[%emt 0:00:10]} Kd6 {[%emt 0:00:16]} 41. Kd4 {[%emt 0:30:13]} Rg6 {[%emt 0:30:46]} 42. Rh7 {[%emt 0:00:44]} Rg5 {[%emt 0:00:14]} 43. e5+ {[%emt 0:00:18]} Rxe5 {[%emt 0:00:30]} 44. Rh6+ {[%emt 0:00:03]} 1-0

[Event "WYCC U16 Girls 2019"]
[Site "Mumbai"]
[Date "2019.10.02"]
[Round "1.8"]
[White "Al Maamari, Wafia Darwish"]
[Black "Srdanovic, Jovana"]
[Result "0-1"]
[ECO "B83"]
[WhiteElo "1673"]
[BlackElo "2100"]
[Annotator "NA"]
[PlyCount "126"]
[EventDate "2019.10.02"]
[EventType "swiss"]
[EventCountry "IND"]
[SourceTitle "playchess.com"]
[Source "ChessBase"]
[SourceQuality "1"]
[TimeControl "40/5400+30:1800+30"]

1. e4 c5 2. Nf3 e6 3. d4 cxd4 4. Nxd4 Nc6 5. Nc3 d6 6. Be2 Nf6 7. Bg5 a6 8. Nxc6 bxc6 9. e5 dxe5 10. Qxd8+ Kxd8 11. O-O-O+ Kc7 12. Bf3 Nd5 13. Na4 f6 14. Bd2 a5 15. a3 Be7 16. c4 Nb6 17. Nxb6 Kxb6 18. b4 axb4 19. axb4 Ra4 20. c5+ Kc7 21. Kb2 Bb7 22. Ra1 Rha8 23. Rxa4 Rxa4 24. Bc3 Ra8 25. Bg4 Bc8 26. Ra1 Rxa1 27. Kxa1 Kd7 28. Be2 Bb7 29. Kb2 Bd8 30. Bc4 Bc7 31. Kc2 e4 32. g3 Ke7 33. Kd2 g5 34. Ke3 f5 35. Bd4 Bc8 36. b5 e5 37. Bc3 cxb5 38. Bxb5 h5 39. Be2 g4 40. Bc4 Bb7 41. Bb4 Bc6 42. Bc3 f4+ 43. Ke2 Be8 44. Bb2 Bf7 45. Bb5 Bd5 46. Bc3 Kf7 47. Ba6 Kg6 48. Bb5 Kf5 49. Bd7+ Kg5 50. Bb5 h4 51. Bd2 Be6 52. Ba6 Bd7 53. Bc4 Bc6 54. Bc3 hxg3 55. hxg3 e3 56. Be1 Bf3+ 57. Kf1 exf2 58. Bxf2 e4 59. gxf4+ Kxf4 60. Be2 g3 61. Bg1 e3 62. Bxf3 Kxf3 63. c6 e2+ 0-1

[Event "WYCC U16 Girls 2019"]
[Site "Mumbai"]
[Date "2019.10.02"]
[Round "1.9"]
[White "Ciolacu, Alessia-Mihaela"]
[Black "Ge, Eva"]
[Result "1/2-1/2"]
[ECO "D96"]
[WhiteElo "2095"]
[BlackElo "1673"]
[Annotator "NA"]
[PlyCount "107"]
[EventDate "2019.10.02"]
[EventType "swiss"]
[EventCountry "IND"]
[SourceTitle "playchess.com"]
[Source "ChessBase"]
[SourceQuality "1"]
[TimeControl "40/5400+30:1800+30"]

1. d4 {[%emt 0:00:00]} d5 {[%emt 0:00:00]} 2. Nf3 {[%emt 0:00:00]} Nf6 {[%emt 0:00:00]} 3. c4 {[%emt 0:00:00]} c6 {[%emt 0:00:03]} 4. Nc3 {[%emt 0:00:11]} g6 {[%emt 0:00:07]} 5. Bg5 {[%emt 0:03:35]} Ne4 {[%emt 0:00:28]} 6. cxd5 {[%emt 0:14:46]} Nxg5 {[%emt 0:01:47]} 7. Nxg5 {[%emt 0:00:07]} e6 {[%emt 0:00:17]} 8. Nf3 {[%emt 0:04:58]} cxd5 {[%emt 0:03:15]} 9. e3 {[%emt 0:02:23]} Bg7 {[%emt 0:02:57]} 10. Rc1 {[%emt 0:07:37]} Nc6 {[%emt 0:04:13]} 11. Bb5 {[%emt 0:00:47]} Bd7 {[%emt 0:01:32]} 12. Bxc6 {[%emt 0:00:56]} Bxc6 {[%emt 0:01:00]} 13. O-O {[%emt 0:00:56]} Qd6 {[%emt 0:07:08]} 14. Qb3 {[%emt 0:14:13]} O-O {[%emt 0:06:43]} 15. Ne2 {[%emt 0:05:49]} f6 {[%emt 0:08:35]} 16. Rc3 a5 {[%emt 0:11:26]} 17. Rfc1 {[%emt 0:22:38]} a4 {[%emt 0:14:27]} 18. Qc2 {[%emt 0:01:50]} Rac8 {[%emt 0:03:28]} 19. Rc5 {[%emt 0:03:06]} Bd7 {[%emt 0:05:27]} 20. h3 {[%emt 0:09:49]} Rxc5 {[%emt 0:08:30]} 21. Qxc5 {[%emt 0:00:08]} Qxc5 {[%emt 0:04:22]} 22. Rxc5 {[%emt 0:00:07]} Rc8 {[%emt 0:00:13]} 23. Rxc8+ {[%emt 0:01:42]} Bxc8 {[%emt 0:00:02]} 24. Nc3 {[%emt 0:00:43]} Bd7 {[%emt 0:00:37]} 25. Ne1 {[%emt 0:00:53]} Kf7 {[%emt 0:03:02]} 26. Nd3 {[%emt 0:01:02]} b6 {[%emt 0:02:23]} 27. Kf1 {[%emt 0:00:53]} Ke7 {[%emt 0:01:13]} 28. Ke2 {[%emt 0:00:48]} Kd6 {[%emt 0:02:00]} 29. Nb4 {[%emt 0:00:38]} Bf8 {[%emt 0:03:04]} 30. Kd2 {[%emt 0:01:00]} Kc7 {[%emt 0:00:57]} 31. Nd3 {[%emt 0:00:36]} b5 {[%emt 0:02:44]} 32. a3 {[%emt 0:00:52]} Bc6 {[%emt 0:00:36]} 33. Na2 {[%emt 0:00:34]} Kd6 {[%emt 0:01:04]} 34. Nab4 {[%emt 0:00:59]} Bd7 {[%emt 0:01:46]} 35. Kc3 {[%emt 0:01:44]} e5 {[%emt 0:00:47]} 36. Nc5 {[%emt 0:00:45]} Be8 {[%emt 0:00:44]} 37. f3 {[%emt 0:00:37]} Bf7 {[%emt 0:00:50]} 38. Nbd3 {[%emt 0:00:15]} Bg7 {[%emt 0:00:35]} 39. Kb4 {[%emt 0:00:44]} Kc6 {[%emt 0:00:25]} 40. Kc3 {[%emt 0:00:41]} Bf8 {[%emt 0:00:39]} 41. Nb4+ {[%emt 0:10:22]} Kd6 {[%emt 0:05:07]} 42. Nba6 {[%emt 0:03:02]} Bh6 {[%emt 0:07:37]} 43. Nb7+ {[%emt 0:03:44]} Ke7 {[%emt 0:01:30]} 44. Kd3 {[%emt 0:00:42]} Be8 {[%emt 0:02:49]} 45. Nc7 {[%emt 0:03:03]} Bc6 {[%emt 0:01:03]} 46. Na5 {[%emt 0:00:39]} e4+ {[%emt 0:02:45]} 47. Ke2 {[%emt 0:03:51]} Kd6 {[%emt 0:00:24]} 48. Nxc6 {[%emt 0:00:42]} Kxc6 {[%emt 0:04:54]} 49. Ne6 {[%emt 0:03:00]} f5 {[%emt 0:01:59]} 50. f4 {[%emt 0:03:21]} Kd6 {[%emt 0:00:50]} 51. Nd8 {[%emt 0:00:54]} Bf8 {[%emt 0:01:18]} 52. g4 {[%emt 0:01:11]} Be7 {[%emt 0:01:19]} 53. Nf7+ {[%emt 0:00:22]} Ke6 {[%emt 0:00:42]} 54. Ne5 {[%emt 0:00:56]} 1/2-1/2

[Event "WYCC U16 Girls 2019"]
[Site "Mumbai"]
[Date "2019.10.02"]
[Round "1.10"]
[White "Arushi Kotwal"]
[Black "Zhang, Xiao"]
[Result "1/2-1/2"]
[ECO "A46"]
[WhiteElo "1657"]
[BlackElo "2053"]
[Annotator "NA"]
[PlyCount "72"]
[EventDate "2019.10.02"]
[EventType "swiss"]
[EventCountry "IND"]
[SourceTitle "playchess.com"]
[Source "ChessBase"]
[SourceQuality "1"]
[TimeControl "40/5400+30:1800+30"]

1. d4 Nf6 2. Nf3 e6 3. c4 d5 4. g3 dxc4 5. Qa4+ Nbd7 6. Bg2 a6 7. Qxc4 b5 8. Qc6 Nd5 9. Bg5 Be7 10. Bxe7 Qxe7 11. O-O Bb7 12. Qc2 O-O 13. Nc3 Nxc3 14. Qxc3 c5 15. dxc5 Nxc5 16. Qb4 Rfc8 17. Rac1 Bd5 18. a3 Bxf3 19. Bxf3 Qg5 20. h4 Qe5 21. Rfd1 g6 22. b3 a5 23. Qxa5 Nxb3 24. Rxc8+ Rxc8 25. Qb4 Nc1 26. Qd2 Qc5 27. Qb2 Qc4 28. Rd4 Qc3 29. Qxc3 Rxc3 30. a4 bxa4 31. Rxa4 Kg7 32. Ra3 Nb3 33. Kg2 Nd4 34. Ra4 Nf5 35. Be4 Nd6 36. Bd3 Kf6 1/2-1/2